fUST/lending_fUST_20240920
["ID","MTS","AMOUNT","RATE_DAILY","PERIOD"]
[338602364,1726761846906,-174.62,0.00015797,2]
[338602366,1726761892720,2064.96,0.00022,60]
[338602370,1726762054151,-3.951428,0.00015797,2]
[338602371,1726762054176,-178.571428,0.00015934,2]
[338602372,1726762054199,-178.571428,0.00016071,2]
[338602373,1726762054222,-178.571428,0.00016208,2]
[338602374,1726762054245,-178.571428,0.00016346,2]
[338602375,1726762054267,-178.571428,0.00016483,2]
[338602376,1726762054289,-3475.58585563,0.00016618,2]
[338602377,1726762054313,-178.571428,0.0001662,2]
[338602378,1726762054337,-709.017193,0.00016687,2]
[338602379,1726762054358,-300.0,0.00016691,2]
[338602380,1726762054380,-300.0,0.00016691,2]
[338602381,1726762054404,-24900.0,0.00016692,2]
[338602382,1726762054430,-159.67833534,0.0001681,2]
[338602383,1726762054453,-159.363237,0.0001689,2]
[338602384,1726762054474,-159.363237,0.0001689,2]
[338602385,1726762054497,-151.755896,0.0001689,2]
[338602386,1726762054518,-159.363237,0.000169,2]
[338602387,1726762054540,-159.363237,0.000169,2]
[338602388,1726762054562,-159.363237,0.00016901,2]
[338602389,1726762054585,-159.363237,0.00016901,2]
[338602390,1726762054609,-159.363237,0.00016901,2]
[338602391,1726762054630,-159.363237,0.00016901,2]
[338602392,1726762054652,-159.363237,0.00016901,2]
[338602393,1726762054673,-159.363237,0.00016901,2]
[338602394,1726762054694,-159.363237,0.00016908,2]
[338602395,1726762054714,-159.363237,0.00016908,2]
[338602396,1726762054735,-159.363237,0.00016909,2]
[338602397,1726762054755,-159.363237,0.00016909,2]
[338602398,1726762054776,-159.363237,0.0001691,2]
[338602399,1726762054797,-159.363237,0.0001691,2]
[338602400,1726762054819,-159.363237,0.0001691,2]
[338602401,1726762054840,-159.363237,0.0001691,2]
[338602402,1726762054863,-159.363237,0.00016918,2]
[338602403,1726762054884,-159.363229,0.00016918,2]
[338602404,1726762054906,-150.0,0.0001709,2]
[338602405,1726762054927,-150.0,0.00017311,2]
[338602406,1726762054948,-524.0,0.00017311,2]
[338602407,1726762054968,-1216.0,0.00017311,2]
[338602408,1726762054989,-181.5,0.0001733,2]
[338602409,1726762055010,-181.5,0.00017572,2]
[338602410,1726762055033,-500.0,0.00017808,2]
[338602411,1726762055056,-181.5,0.00017815,2]
[338602412,1726762055077,-150.0,0.00018,2]
[338602413,1726762055099,-150.0,0.00018,2]
[338602414,1726762055119,-181.5,0.00018058,2]
[338602415,1726762055142,-669.497,0.0001818,2]
[338602416,1726762055162,-191.043,0.0001822,2]
[338602417,1726762055183,-420.0,0.00018236,2]
[338602418,1726762055204,-181.5,0.00018301,2]
[338602419,1726762055225,-420.0,0.0001836,2]
[338602420,1726762055246,-500.17054982,0.00018406,2]
[338602421,1726762055266,-181.5,0.00018543,2]
[338602422,1726762055288,-7138.03841527,0.00018677,2]
[338602423,1726762055309,-204.0,0.0001877,2]
[338602424,1726762055328,-181.5,0.00018786,2]
[338602425,1726762055349,-943.09,0.00019,2]
[338602426,1726762055369,-1754.00000001,0.00019,2]
[338602427,1726762055390,-150.0,0.00019,2]
[338602428,1726762055414,-187.4834285,0.00019017,2]
[338602429,1726762055435,-1000.0,0.00019017,2]
[338602430,1726762055456,-181.5,0.00019029,2]
[338602431,1726762055477,-1796.07040859,0.0001905,2]
[338602432,1726762055500,-29440.04150013,0.00019116,5]
[338602433,1726762055522,-377.28048187,0.00019116,2]
[338602434,1726762055544,-500.0,0.00019116,2]
[338602435,1726762055565,-500.0,0.00019116,2]
[338602436,1726762055586,-500.0,0.00019116,2]
[338602437,1726762055608,-500.0,0.00019116,2]
[338602438,1726762055632,-500.0,0.00019116,2]
[338602439,1726762055652,-500.0,0.00019116,2]
[338602440,1726762055675,-500.0,0.00019116,2]
[338602441,1726762055695,-500.0,0.00019116,2]
[338602442,1726762055715,-500.0,0.00019116,2]
[338602443,1726762055736,-500.0,0.00019116,2]
[338602444,1726762055758,-500.0,0.00019116,2]
[338602445,1726762055779,-500.0,0.00019116,2]
[338602446,1726762055801,-375.47923596,0.00019116,2]
[338602447,1726762055821,-500.0,0.00019116,2]
[338602448,1726762055841,-412.0539935,0.00019116,2]
[338602449,1726762055863,-500.0,0.00019116,2]
[338602450,1726762055885,-500.0,0.00019116,2]
[338602451,1726762055906,-500.0,0.00019116,2]
[338602452,1726762055927,-500.0,0.00019116,2]
[338602453,1726762055951,-500.0,0.00019116,2]
[338602454,1726762055973,-500.0,0.00019116,2]
[338602455,1726762055994,-500.0,0.00019116,2]
[338602456,1726762056015,-500.0,0.00019116,2]
[338602457,1726762056039,-500.0,0.00019116,2]
[338602458,1726762056060,-500.0,0.00019116,2]
[338602459,1726762056081,-500.0,0.00019116,2]
[338602460,1726762056101,-500.0,0.00019116,2]
[338602461,1726762056125,-500.0,0.00019116,2]
[338602462,1726762056146,-500.0,0.00019116,2]
[338602463,1726762056166,-500.0,0.00019116,2]
[338602464,1726762056186,-500.0,0.00019116,2]
[338602465,1726762056206,-500.0,0.00019116,2]
[338602466,1726762056226,-500.0,0.00019116,2]
[338602467,1726762056247,-500.0,0.00019116,2]
[338602468,1726762056270,-500.0,0.00019116,2]
[338602469,1726762056295,-500.0,0.00019116,2]
[338602470,1726762056318,-500.0,0.00019116,2]
[338602471,1726762056342,-500.0,0.00019116,2]
[338602472,1726762056366,-500.0,0.00019116,2]
[338602473,1726762056388,-500.0,0.00019116,2]
[338602474,1726762056409,-500.0,0.00019116,2]
[338602475,1726762056436,-500.0,0.00019116,2]
[338602476,1726762056458,-500.0,0.00019116,2]
[338602477,1726762056481,-500.0,0.00019116,2]
[338602478,1726762056504,-500.0,0.00019116,2]
[338602479,1726762056526,-500.0,0.00019116,2]
[338602480,1726762056549,-500.0,0.00019116,2]
[338602481,1726762056571,-500.0,0.00019116,2]
[338602482,1726762056592,-500.0,0.00019116,2]
[338602483,1726762056613,-500.0,0.00019116,2]
[338602484,1726762056635,-500.0,0.00019116,2]
[338602485,1726762056657,-500.0,0.00019116,2]
[338602486,1726762056679,-500.0,0.00019116,2]
[338602487,1726762056702,-91.5093423,0.00019116,2]
[338602497,1726762147239,170.0,0.00014,2]
[338602620,1726762237889,-1000.0,0.00018897,2]
[338602621,1726762237899,-1000.0,0.00018958,2]
[338602622,1726762237909,-300.0,0.00019006,2]
[338602623,1726762237918,-300.0,0.00019006,2]
[338602624,1726762237927,-5824.82207678,0.00019007,2]
[338602625,1726762237936,-187.48342849,0.00019007,2]
[338602626,1726762237946,-187.48342849,0.00019014,2]
[338602627,1726762237955,-187.48342849,0.00019021,2]
[338602628,1726762237965,-1000.0,0.00019035,2]
[338602629,1726762237975,-1012.68825475,0.00019049,2]
[338602630,1726762237984,-1000.0,0.00019079,2]
[338602631,1726762237994,-14720.02075006,0.00019107,5]
[338602632,1726762238003,-32126.33251225,0.00019107,3]
[338602633,1726762238016,-28786.53375815,0.00019107,3]
[338602634,1726762238026,-5533.0273612,0.00019107,3]
[338602652,1726762239785,-77342.5806798,0.00019107,3]
[338602653,1726762239795,-500.0,0.00019107,2]
[338602654,1726762239804,-265.14728708,0.00019107,2]
[338602655,1726762239814,-263.94213733,0.00019107,2]
[338602656,1726762239823,-500.0,0.00019107,2]
[338602657,1726762239832,-500.0,0.00019107,2]
[338602658,1726762239842,-500.0,0.00019107,2]
[338602659,1726762239851,-500.0,0.00019107,2]
[338602661,1726762239861,-500.0,0.00019107,2]
[338602662,1726762239870,-500.0,0.00019107,2]
[338602664,1726762239879,-500.0,0.00019107,2]
[338602665,1726762239888,-500.0,0.00019107,2]
[338602667,1726762239897,-178.17927909,0.00019107,2]
[338602669,1726762239907,-500.0,0.00019107,2]
[338602671,1726762239916,-500.0,0.00019107,2]
[338602673,1726762239925,-500.0,0.00019107,2]
[338602675,1726762239935,-500.0,0.00019107,2]
[338602676,1726762239945,-500.0,0.00019107,2]
[338602677,1726762239954,-500.0,0.00019107,2]
[338602678,1726762239968,-500.0,0.00019107,2]
[338602679,1726762239977,-500.0,0.00019107,2]
[338602680,1726762239987,-500.0,0.00019107,2]
[338602681,1726762239996,-500.0,0.00019107,2]
[338602682,1726762240006,-500.0,0.00019107,2]
[338602683,1726762240015,-500.0,0.00019107,2]
[338602684,1726762240024,-500.0,0.00019107,2]
[338602685,1726762240034,-500.0,0.00019107,2]
[338602686,1726762240044,-500.0,0.00019107,2]
[338602687,1726762240053,-500.0,0.00019107,2]
[338602688,1726762240063,-500.0,0.00019107,2]
[338602689,1726762240071,-500.0,0.00019107,2]
[338602690,1726762240081,-500.0,0.00019107,2]
[338602691,1726762240090,-500.0,0.00019107,2]
[338602692,1726762240099,-500.0,0.00019107,2]
[338602693,1726762240108,-500.0,0.00019107,2]
[338602694,1726762240117,-500.0,0.00019107,2]
[338602695,1726762240127,-500.0,0.00019107,2]
[338602696,1726762240135,-500.0,0.00019107,2]
[338602697,1726762240145,-500.0,0.00019107,2]
[338602698,1726762240154,-500.0,0.00019107,2]
[338602699,1726762240163,-500.0,0.00019107,2]
[338602700,1726762240172,-500.0,0.00019107,2]
[338602701,1726762240181,-500.0,0.00019107,2]
[338602702,1726762240190,-500.0,0.00019107,2]
[338602703,1726762240198,-500.0,0.00019107,2]
[338602704,1726762240210,-500.0,0.00019107,2]
[338602705,1726762240220,-500.0,0.00019107,2]
[338602706,1726762240229,-500.0,0.00019107,2]
[338602707,1726762240238,-500.0,0.00019107,2]
[338602708,1726762240246,-500.0,0.00019107,2]
[338602709,1726762240255,-500.0,0.00019107,2]
[338602710,1726762240264,-500.0,0.00019107,2]
[338602711,1726762240273,-500.0,0.00019107,2]
[338602712,1726762240281,-500.0,0.00019107,2]
[338602713,1726762240291,-500.0,0.00019107,2]
[338602714,1726762240300,-500.0,0.00019107,2]
[338602715,1726762240310,-500.0,0.00019107,2]
[338602716,1726762240319,-500.0,0.00019107,2]
[338602717,1726762240328,-500.0,0.00019107,2]
[338602718,1726762240337,-500.0,0.00019107,2]
[338602719,1726762240346,-500.0,0.00019107,2]
[338602720,1726762240355,-500.0,0.00019107,2]
[338602721,1726762240364,-500.0,0.00019107,2]
[338602722,1726762240374,-500.0,0.00019107,2]
[338602723,1726762240383,-500.0,0.00019107,2]
[338602724,1726762240393,-500.0,0.00019107,2]
[338602725,1726762240403,-500.0,0.00019107,2]
[338602726,1726762240412,-500.0,0.00019107,2]
[338602727,1726762240421,-500.0,0.00019107,2]
[338602728,1726762240431,-500.0,0.00019107,2]
[338602729,1726762240441,-500.0,0.00019107,2]
[338602730,1726762240450,-500.0,0.00019107,2]
[338602731,1726762240464,-500.0,0.00019107,2]
[338602732,1726762240473,-365.11192999,0.00019107,2]
[338602733,1726762240483,-500.0,0.00019107,2]
[338602734,1726762240496,-500.0,0.00019107,2]
[338602735,1726762240506,-500.0,0.00019107,2]
[338602736,1726762240516,-500.0,0.00019107,2]
[338602737,1726762240526,-500.0,0.00019107,2]
[338602738,1726762240537,-500.0,0.00019107,2]
[338602739,1726762240546,-900.79751823,0.00019107,2]
[338602740,1726762240556,-900.79751823,0.00019107,2]
[338602741,1726762240566,-900.79751823,0.00019107,2]
[338602742,1726762240577,-900.79751823,0.00019107,2]
[338602743,1726762240587,-900.79751823,0.00019107,2]
[338602744,1726762240597,-900.79751823,0.00019107,2]
[338602745,1726762240606,-900.79751823,0.00019107,2]
[338602746,1726762240616,-900.79751823,0.00019107,2]
[338602747,1726762240625,-900.79751823,0.00019107,2]
[338602748,1726762240635,-900.79751823,0.00019107,2]
[338602749,1726762240644,-900.79751823,0.00019107,2]
[338602750,1726762240654,-900.79751823,0.00019107,2]
[338602751,1726762240664,-900.79751823,0.00019107,2]
[338602752,1726762240674,-900.79751823,0.00019107,2]
[338602753,1726762240683,-900.79751823,0.00019107,2]
[338602754,1726762240693,-900.79751823,0.00019107,2]
[338602755,1726762240703,-900.79751823,0.00019107,2]
[338602756,1726762240716,-900.79751823,0.00019107,2]
[338602757,1726762240726,-900.79751816,0.00019107,2]
[338602758,1726762240735,-500.0,0.00019107,2]
[338602759,1726762240745,-500.0,0.00019107,2]
[338602760,1726762240755,-500.0,0.00019107,2]
[338602761,1726762240764,-304.88830286,0.00019107,2]
[338602762,1726762240774,-334.96613768,0.00019107,2]
[338602763,1726762240784,-500.0,0.00019107,2]
[338602764,1726762240794,-500.0,0.00019107,2]
[338602765,1726762240803,-500.0,0.00019107,2]
[338602766,1726762240812,-557.3589599,0.00019107,2]
[338602767,1726762240822,-500.0,0.00019107,2]
[338602768,1726762240832,-500.0,0.00019107,2]
[338602769,1726762240841,-500.0,0.00019107,2]
[338602770,1726762240851,-500.0,0.00019107,2]
[338602771,1726762240860,-500.0,0.00019107,2]
[338602772,1726762240869,-500.0,0.00019107,2]
[338602773,1726762240879,-500.0,0.00019107,2]
[338602774,1726762240889,-500.0,0.00019107,2]
[338602775,1726762240899,-500.0,0.00019107,2]
[338602776,1726762240908,-500.0,0.00019107,2]
[338602777,1726762240918,-500.0,0.00019107,2]
[338602778,1726762240927,-309.51404818,0.00019107,2]
[338602779,1726762240937,-500.0,0.00019107,2]
[338602780,1726762240946,-500.0,0.00019107,2]
[338602781,1726762240955,-500.0,0.00019107,2]
[338602782,1726762240966,-500.0,0.00019107,2]
[338602783,1726762240975,-500.0,0.00019107,2]
[338602784,1726762240985,-500.0,0.00019107,2]
[338602785,1726762240995,-500.0,0.00019107,2]
[338602786,1726762241004,-500.0,0.00019107,2]
[338602787,1726762241013,-169.93724166,0.00019108,2]
[338602788,1726762241022,-92223.19301065,0.00019108,3]
[338602789,1726762241171,-3359.44646919,0.00019108,3]
[338602790,1726762241183,-328.28270888,0.00019108,3]
[338602817,1726762242957,-486.84628465,0.00019108,3]
[338602818,1726762242980,-125.38474,0.00019108,3]
[338602819,1726762242993,-2106.33901139,0.00019108,3]
[338602832,1726762245726,-848.78,0.00019,2]
[338602833,1726762245737,-4239.92954531,0.00019108,3]
[338602834,1726762245749,-2967.88521807,0.00019108,3]
[338602835,1726762245761,-76901.29182286,0.00019108,3]
[338602836,1726762245771,-83914.55494183,0.00019108,3]
[338602837,1726762246837,-13043.39225782,0.00019108,3]
[338602838,1726762246849,-756.324146,0.00019108,3]
[338602848,1726762599469,9057.41335336,0.00022,60]
[338602850,1726762633698,150.0,0.00015,120]
[338602911,1726763251153,-300.0,0.00014525,2]
[338602912,1726763251175,-300.0,0.00014525,2]
[338602913,1726763251196,-24900.0,0.00014526,2]
[338602914,1726763251216,-420.0,0.00015904,2]
[338602915,1726763251237,-420.0,0.00015977,2]
[338602916,1726763251259,-587.0,0.00017415,2]
[338602917,1726763251279,-160.82592501,0.00017452,2]
[338602918,1726763251299,-150.0,0.00017552,2]
[338602919,1726763251319,-524.0,0.00017552,2]
[338602920,1726763251338,-1216.0,0.00017552,2]
[338602921,1726763251359,-587.0,0.00017575,2]
[338602922,1726763251381,-354.508597,0.00017615,2]
[338602923,1726763251401,-5772.43509585,0.00017708,2]
[338602924,1726763251421,-160.82592501,0.00017722,2]
[338602925,1726763251441,-500.0,0.00017808,2]
[338602926,1726763251461,-160.82592501,0.00017991,2]
[338602928,1726763251482,-500.0,0.0001815,7]
[338602929,1726763251503,-151.8,0.0001815,7]
[338602930,1726763251522,-160.82592501,0.00018261,2]
[338602931,1726763251542,-925.69385997,0.00018434,2]
[338602932,1726763251562,-535.598,0.000185,2]
[338602933,1726763251581,-160.82592501,0.0001853,2]
[338602934,1726763251601,-7138.03841527,0.00018723,2]
[338602935,1726763251621,-207.0,0.0001878,2]
[338602936,1726763251642,-160.82592501,0.000188,2]
[338602937,1726763251662,-618.0,0.000189,2]
[338602938,1726763251681,-5000.0,0.00018904,2]
[338602939,1726763251704,-153.0,0.00019,2]
[338602940,1726763251738,-763.9,0.00019,2]
[338602941,1726763251758,-160.58621947,0.00019,2]
[338602942,1726763251779,-1616.46336774,0.00019049,2]
[338602943,1726763251803,-823.0,0.00019069,2]
[338602944,1726763251823,-500.0,0.00019073,2]
[338602945,1726763251844,-464.22077848,0.00019073,2]
[338602946,1726763252071,-500.0,0.00019073,2]
[338602947,1726763252092,-500.0,0.00019073,2]
[338602948,1726763252113,-500.0,0.00019073,2]
[338602949,1726763252138,-7360.01037504,0.00019077,5]
[338602950,1726763252159,-263.94213733,0.00019077,2]
[338602951,1726763252179,-500.0,0.00019077,2]
[338602952,1726763252202,-500.0,0.00019077,2]
[338602953,1726763252222,-500.0,0.00019077,2]
[338602954,1726763252243,-500.0,0.00019077,2]
[338602955,1726763252268,-500.0,0.00019077,2]
[338602956,1726763252289,-500.0,0.00019077,2]
[338602957,1726763252317,-500.0,0.00019077,2]
[338602958,1726763252340,-500.0,0.00019077,2]
[338602959,1726763252361,-500.0,0.00019077,2]
[338602960,1726763252389,-500.0,0.00019077,2]
[338602961,1726763252411,-500.0,0.00019077,2]
[338602962,1726763252432,-178.17927909,0.00019077,2]
[338602963,1726763252454,-500.0,0.00019077,2]
[338602964,1726763252476,-599.99999998,0.00019077,2]
[338602965,1726763252497,-500.0,0.00019077,2]
[338602966,1726763252519,-500.0,0.00019077,2]
[338602967,1726763252544,-500.0,0.00019077,2]
[338602968,1726763252567,-500.0,0.00019077,2]
[338602969,1726763252589,-500.0,0.00019077,2]
[338602970,1726763252613,-500.0,0.00019077,2]
[338602971,1726763252639,-500.0,0.00019077,2]
[338602972,1726763252661,-500.0,0.00019077,2]
[338602973,1726763252682,-265.14728708,0.00019077,2]
[338602974,1726763252704,-637.49286049,0.00019077,2]
[338602975,1726763252729,-637.49286049,0.00019077,2]
[338602976,1726763252754,-637.49286049,0.00019077,2]
[338602977,1726763252777,-637.49286049,0.00019077,2]
[338602978,1726763252800,-637.49286049,0.00019077,2]
[338602979,1726763252824,-637.49286049,0.00019077,2]
[338602980,1726763252847,-637.49286049,0.00019077,2]
[338602981,1726763252870,-637.49286049,0.00019077,2]
[338602982,1726763252904,-637.49286049,0.00019077,2]
[338602983,1726763252926,-637.49286049,0.00019077,2]
[338602984,1726763252947,-637.49286049,0.00019077,2]
[338602985,1726763252969,-637.49286049,0.00019077,2]
[338602986,1726763252992,-637.49286049,0.00019077,2]
[338602987,1726763253014,-637.49286049,0.00019077,2]
[338602988,1726763253043,-637.49286049,0.00019077,2]
[338602989,1726763253071,-637.49286049,0.00019077,2]
[338602990,1726763253097,-637.49286049,0.00019077,2]
[338602991,1726763253120,-637.49286049,0.00019077,2]
[338602992,1726763253150,-637.49286049,0.00019077,2]
[338602993,1726763253173,-637.49286049,0.00019077,2]
[338602994,1726763253196,-637.49286049,0.00019077,2]
[338602995,1726763253218,-637.49286049,0.00019077,2]
[338602996,1726763253241,-637.49286049,0.00019077,2]
[338602997,1726763253265,-637.49286049,0.00019077,2]
[338602998,1726763253289,-637.49286049,0.00019077,2]
[338602999,1726763253314,-637.49286049,0.00019077,2]
[338603000,1726763253337,-637.49286049,0.00019077,2]
[338603001,1726763253361,-637.49286049,0.00019077,2]
[338603002,1726763253395,-637.49286049,0.00019077,2]
[338603003,1726763253418,-637.49286049,0.00019077,2]
[338603004,1726763253443,-637.49286049,0.00019077,2]
[338603005,1726763253467,-637.49286049,0.00019077,2]
[338603006,1726763253492,-637.49286049,0.00019077,2]
[338603007,1726763253517,-637.49286049,0.00019077,2]
[338603008,1726763253542,-637.49286049,0.00019077,2]
[338603009,1726763253568,-637.49286049,0.00019077,2]
[338603010,1726763253595,-637.49286049,0.00019077,2]
[338603011,1726763253621,-637.49286049,0.00019077,2]
[338603012,1726763253648,-637.49286049,0.00019077,2]
[338603013,1726763253673,-637.49286049,0.00019077,2]
[338603014,1726763253698,-637.49286049,0.00019077,2]
[338603015,1726763253722,-637.49286049,0.00019077,2]
[338603016,1726763253746,-637.49286049,0.00019077,2]
[338603017,1726763253770,-637.49286049,0.00019077,2]
[338603018,1726763253794,-637.49286049,0.00019077,2]
[338603019,1726763253822,-637.49286049,0.00019077,2]
[338603020,1726763253849,-637.49286049,0.00019077,2]
[338603021,1726763253880,-637.49286049,0.00019077,2]
[338603022,1726763253905,-620.28055326,0.00019077,2]
[338603023,1726763253929,-620.28055326,0.00019077,2]
[338603024,1726763253952,-620.28055326,0.00019077,2]
[338603025,1726763253977,-620.28055326,0.00019077,2]
[338603026,1726763254001,-620.28055326,0.00019077,2]
[338603027,1726763254025,-620.28055326,0.00019077,2]
[338603028,1726763254049,-620.28055326,0.00019077,2]
[338603029,1726763254072,-620.28055326,0.00019077,2]
[338603030,1726763254096,-620.28055326,0.00019077,2]
[338603031,1726763254119,-620.28055326,0.00019077,2]
[338603032,1726763254143,-620.28055326,0.00019077,2]
[338603033,1726763254169,-620.28055326,0.00019077,2]
[338603034,1726763254193,-620.28055326,0.00019077,2]
[338603035,1726763254216,-620.28055326,0.00019077,2]
[338603036,1726763254239,-620.28055326,0.00019077,2]
[338603037,1726763254263,-620.28055326,0.00019077,2]
[338603038,1726763254286,-620.28055326,0.00019077,2]
[338603039,1726763254308,-620.28055326,0.00019077,2]
[338603040,1726763254331,-620.28055326,0.00019077,2]
[338603041,1726763254354,-620.28055326,0.00019077,2]
[338603042,1726763254382,-620.28055326,0.00019077,2]
[338603043,1726763254411,-620.28055326,0.00019077,2]
[338603044,1726763254434,-620.28055326,0.00019077,2]
[338603045,1726763254458,-620.28055323,0.00019077,2]
[338603046,1726763254481,-620.28055322,0.00019077,2]
[338603047,1726763254504,-53341.4526669,0.00019078,3]
[338603048,1726763254527,-9392.16956983,0.00019078,3]
[338603049,1726763254550,-18739.66373395,0.00019078,3]
[338603061,1726763399679,1153.85,0.00014013,2]
[338603155,1726763437980,-772.37609463,0.000167,2]
[338603168,1726763438217,-160.98772376,0.000167,2]
[338603169,1726763438229,-1215.4548922,0.000167,2]
[338603170,1726763438238,-35.01962808,0.00017552,2]
[338603183,1726763440150,-114.98037192,0.00017552,2]
[338603185,1726763440161,-447.7861025,0.00017552,2]
[338603188,1726763440205,-76.2138975,0.00017552,2]
[338603189,1726763440215,-3019.605632,0.00018,4]
[338603190,1726763440224,-177.254298,0.00018067,2]
[338603191,1726763440233,-5050.88070886,0.00018931,2]
[338603192,1726763440242,-1383.92739446,0.00019,2]
[338603193,1726763440251,-1827.96690342,0.00019,2]
[338603194,1726763440263,-1827.9669034,0.0001902,2]
[338603195,1726763440272,-300.0,0.00019029,2]
[338603196,1726763440281,-300.0,0.00019029,2]
[338603197,1726763440290,-35264.77671824,0.0001903,2]
[338603198,1726763440299,-1000.0,0.00019031,2]
[338603199,1726763440308,-1827.9669034,0.00019039,2]
[338603201,1726763440318,-150.0,0.000191,2]
[338603204,1726763440327,-155.02572845,0.00019121,2]
[338603206,1726763440336,-3680.00518752,0.00019139,5]
[338603208,1726763440345,-49737.3968468,0.00019139,3]
[338603209,1726763440355,-73846.1140718,0.00019139,3]
[338603210,1726763440364,-297.57547545,0.00019139,2]
[338603212,1726763440373,-500.0,0.00019139,2]
[338603214,1726763440382,-500.0,0.00019139,2]
[338603215,1726763440391,-500.0,0.00019139,2]
[338603218,1726763440400,-500.0,0.00019139,2]
[338603219,1726763440409,-500.0,0.00019139,2]
[338603220,1726763440418,-500.0,0.00019139,2]
[338603221,1726763440427,-500.0,0.00019139,2]
[338603222,1726763440436,-500.0,0.00019139,2]
[338603223,1726763440445,-500.0,0.00019139,2]
[338603224,1726763440455,-500.0,0.00019139,2]
[338603225,1726763440464,-500.0,0.00019139,2]
[338603226,1726763440473,-488.46765479,0.00019139,2]
[338603227,1726763440482,-500.0,0.00019139,2]
[338603228,1726763440491,-49737.3968468,0.0001914,3]
[338603229,1726763440501,-3281.43068963,0.0001914,3]
[338603230,1726763440516,-1999.98674099,0.0001914,3]
[338603231,1726763440542,-68564.69664118,0.0001914,3]
[338603232,1726763440551,-49737.3968468,0.00019148,3]
[338603233,1726763440560,-63100.64580995,0.00019148,3]
[338603234,1726763440571,-6114.21536641,0.00019148,3]
[338603298,1726763445976,-3202.11877771,0.00019148,3]
[338603307,1726763447337,-1429.13411773,0.00019148,3]
[338603308,1726763447350,-409.96455933,0.00019149,2]
[338603309,1726763447363,-12066.7732978,0.00019149,2]
[338603310,1726763447374,-500.0,0.00019149,2]
[338603311,1726763447385,-304.88830286,0.00019149,2]
[338603312,1726763447396,-513.44632022,0.00019149,2]
[338603313,1726763447407,-500.0,0.00019149,2]
[338603314,1726763447419,-500.0,0.00019149,2]
[338603315,1726763447430,-500.0,0.00019149,2]
[338603316,1726763447441,-513.44632022,0.00019149,2]
[338603317,1726763447453,-334.96613768,0.00019149,2]
[338603318,1726763447465,-513.44632022,0.00019149,2]
[338603319,1726763447475,-500.0,0.00019149,2]
[338603320,1726763447487,-513.44632022,0.00019149,2]
[338603321,1726763447499,-513.44632022,0.00019149,2]
[338603322,1726763447512,-513.44632022,0.00019149,2]
[338603323,1726763447528,-500.0,0.00019149,2]
[338603324,1726763447540,-309.51404818,0.00019149,2]
[338603325,1726763447559,-513.44632022,0.00019149,2]
[338603326,1726763447571,-557.3589599,0.00019149,2]
[338603327,1726763447583,-500.0,0.00019149,2]
[338603328,1726763447595,-513.44632022,0.00019149,2]
[338603329,1726763447606,-500.0,0.00019149,2]
[338603330,1726763447620,-513.44632022,0.00019149,2]
[338603331,1726763447632,-513.44632022,0.00019149,2]
[338603332,1726763447645,-513.44632022,0.00019149,2]
[338603333,1726763447656,-513.44632022,0.00019149,2]
[338603334,1726763447667,-513.44632022,0.00019149,2]
[338603335,1726763447681,-513.44632022,0.00019149,2]
[338603336,1726763447694,-513.44632022,0.00019149,2]
[338603337,1726763447706,-169.93724166,0.0001915,2]
[338603338,1726763447717,-2376.33403113,0.0001915,2]
[338603701,1726764012985,1210.42,0.00014013,2]
[338603850,1726764289817,10000.0,0.00014013,2]
[338603853,1726764338119,-300.0,0.0001724,2]
[338603854,1726764338144,-300.0,0.0001724,2]